bitfinex/quotes_BTCUSD_20220111
["timestamp","ask_amount","ask_price","bid_price","bid_amount"]
[1641913124449,0.060075,41618.0,41614.0,0.1]
[1641913124648,0.060075,41618.0,41612.0,0.00072226]
[1641913124649,0.15883793,41618.0,41612.0,0.00072226]
[1641913124848,0.060082,41616.0,41612.0,0.00072226]
[1641913125048,0.060082,41616.0,41614.0,0.007]
[1641913125247,0.267685,41615.0,41614.0,0.007]
[1641913125498,0.1,41615.0,41614.0,0.007]
[1641913125894,0.05,41615.0,41614.0,0.007]
[1641913126094,0.1,41615.0,41614.0,0.007]
[1641913126297,0.1,41615.0,41612.0,0.00071516]
[1641913126696,0.10026423,41615.0,41612.0,0.00071175]
[1641913127097,0.11426423,41615.0,41612.0,0.00371175]
[1641913127695,0.060084,41614.0,41612.0,0.00371175]
[1641913127896,0.060084,41614.0,41612.0,0.003]
[1641913128197,0.060084,41614.0,41611.0,0.00071175]
[1641913128896,0.060084,41614.0,41611.0,0.00471175]
[1641913128897,0.073084,41614.0,41611.0,0.00471175]
[1641913129098,0.09890615,41613.0,41611.0,0.004]
[1641913129344,0.05,41612.0,41611.0,0.004]
[1641913129545,0.05539345,41612.0,41611.0,0.004]
[1641913129748,0.00539345,41612.0,41611.0,0.004]
[1641913129946,0.1,41613.0,41611.0,0.004]
[1641913130346,0.060082,41611.0,41609.0,0.00071486]
[1641913130549,0.060082,41611.0,41610.0,0.37425]
[1641913130748,0.060082,41611.0,41609.0,0.43502873]
[1641913130946,0.060082,41611.0,41610.0,0.80470196]
[1641913130947,0.120082,41611.0,41610.0,0.80470196]
[1641913131146,0.120082,41611.0,41610.0,0.90470196]
[1641913131947,0.120082,41611.0,41610.0,1.40470196]
[1641913132147,0.110082,41611.0,41610.0,1.40470196]
[1641913132351,0.060082,41611.0,41610.0,1.40470196]
[1641913133002,0.060082,41611.0,41610.0,1.40970196]
[1641913134296,0.15239809,41611.0,41610.0,0.47425]
[1641913134497,0.16658043,41611.0,41610.0,0.1]
[1641913134998,0.16658043,41611.0,41610.0,0.002]
[1641913135195,0.22666743,41611.0,41610.0,0.002]
[1641913135596,0.49435243,41611.0,41610.0,0.002]
[1641913135796,0.43426543,41611.0,41610.0,0.002]
[1641913136197,0.43426543,41611.0,41608.0,0.00071416]
[1641913136395,0.267685,41610.0,41608.0,0.00071416]
[1641913137051,0.267685,41610.0,41608.0,0.00171416]
[1641913137052,0.029,41610.0,41608.0,0.00171416]
[1641913137253,0.267685,41609.0,41608.0,0.00171416]
[1641913137453,0.05,41609.0,41608.0,0.001]
[1641913137757,0.00757753,41609.0,41608.0,0.001]
[1641913137953,0.029,41610.0,41608.0,0.001]
[1641913138355,0.00026238,41611.0,41609.0,1.06473378]
[1641913138554,0.00026238,41611.0,41610.0,1.89969525]
[1641913138754,0.00026238,41611.0,41610.0,2.27394525]
[1641913138955,0.00026238,41611.0,41610.0,2.37394525]
[1641913140506,2.38e-06,41611.0,41610.0,2.03823807]
[1641913140707,0.06063938,41618.0,41610.0,2.18382549]
[1641913140904,0.00057338,41618.0,41614.0,0.37425]
[1641913141103,0.0005734,41618.0,41617.0,1.67425]
[1641913141302,0.0005734,41618.0,41617.0,1.71855]
[1641913141503,0.0005734,41618.0,41617.0,2.08284706]
[1641913141703,0.0005734,41618.0,41617.0,3.18490302]
[1641913142102,0.0005734,41618.0,41617.0,3.30500302]
[1641913142304,0.00057353,41620.0,41617.0,3.30500302]
[1641913142504,0.00057353,41620.0,41619.0,1.37425]
[1641913142702,0.00057353,41620.0,41619.0,1.41855]
[1641913142909,0.00057353,41620.0,41619.0,1.51855]
[1641913143104,0.00057353,41620.0,41619.0,1.53655]
[1641913143504,0.00057355,41622.0,41619.0,1.53655]
[1641913143705,0.00057355,41622.0,41620.0,0.30588492]
[1641913143903,0.00057355,41622.0,41621.0,1.52425]
[1641913144106,0.00057355,41622.0,41621.0,1.62425]
[1641913144552,0.00057356,41623.0,41621.0,1.62425]
[1641913144952,0.00057356,41623.0,41621.0,0.38625]
[1641913145156,0.10904724,41622.0,41621.0,0.012]
[1641913145352,0.72501864,41622.0,41621.0,0.012]
[1641913145556,0.00121022,41620.0,41612.0,0.00071423]
[1641913145753,0.060074,41617.0,41612.0,0.00142847]
[1641913145953,0.110074,41617.0,41614.0,0.24652351]
[1641913146152,0.110014,41617.0,41615.0,0.37425]
[1641913146552,0.110014,41617.0,41615.0,0.47425]
[1641913146754,0.059799,41617.0,41615.0,0.47425]
[1641913146954,0.00057345,41618.0,41616.0,0.37425]
[1641913147255,0.00057345,41618.0,41617.0,1.67425]
[1641913147452,0.00057345,41618.0,41617.0,2.04642708]
[1641913147652,5.906e-05,41622.0,41618.0,1.62522151]
[1641913147852,5.906e-05,41622.0,41619.0,0.37425]
[1641913148109,5.906e-05,41622.0,41619.0,0.47425]
[1641913148304,0.00057347,41620.0,41619.0,0.91591192]
[1641913148508,0.00057347,41620.0,41619.0,0.91720709]
[1641913148705,0.00057347,41620.0,41619.0,2.11720709]
[1641913149106,0.00057347,41620.0,41619.0,2.13920709]
[1641913149507,5.906e-05,41622.0,41619.0,0.49625]
[1641913149707,5.906e-05,41622.0,41619.0,0.022]
[1641913149908,0.060063,41622.0,41619.0,0.022]
[1641913150307,0.060063,41622.0,41608.0,0.2853]
[1641913150509,0.34861219,41621.0,41611.0,0.28481851]
[1641913150710,0.66227334,41621.0,41609.0,0.40541858]
[1641913150908,0.35331503,41621.0,41609.0,0.40541858]
[1641913151112,0.39586503,41621.0,41609.0,0.40541858]
[1641913151308,0.39294303,41621.0,41609.0,0.40541858]
[1641913151751,0.39321264,41621.0,41611.0,0.28245937]
[1641913152152,0.060078,41617.0,41611.0,0.28245937]
[1641913152353,0.060078,41617.0,41610.0,0.35643713]
[1641913152553,0.060078,41617.0,41613.0,0.0007945]
[1641913153153,0.110078,41617.0,41613.0,0.0007945]
[1641913153360,0.109848,41617.0,41613.0,0.0007945]
[1641913153553,0.109848,41617.0,41613.0,0.00159597]
[1641913153754,0.109848,41617.0,41613.0,0.00080147]
[1641913154655,0.059848,41617.0,41613.0,0.00080147]
[1641913154855,0.0605958,41620.0,41614.0,0.37425]
[1641913155055,0.0605958,41620.0,41614.0,0.47425]
[1641913155257,0.0005288,41620.0,41616.0,0.00121472]
[1641913155513,0.0005288,41620.0,41618.0,0.32372971]
[1641913155704,0.0005288,41620.0,41619.0,2.36061969]
[1641913156104,0.00052886,41620.0,41619.0,2.46061969]
[1641913156305,0.00052886,41620.0,41619.0,2.46186463]
[1641913157107,0.00052886,41620.0,41619.0,2.47986463]
[1641913157308,0.00059591,41622.0,41619.0,2.47986463]
[1641913158108,0.00059591,41622.0,41620.0,0.30915886]
[1641913158307,0.00059591,41622.0,41621.0,1.12425]
[1641913158509,0.00059026,41623.0,41621.0,0.47425]
[1641913159109,0.13002912,41622.0,41621.0,0.169]
[1641913159354,0.317685,41622.0,41621.0,0.169]
[1641913159554,0.367685,41622.0,41621.0,0.169]
[1641913159754,0.367685,41622.0,41621.0,0.069]
[1641913160255,0.1,41622.0,41618.0,0.35388338]
[1641913160453,0.060068,41621.0,41618.0,0.25388338]
[1641913160656,0.060068,41621.0,41619.0,0.59448329]
[1641913160858,0.00058177,41624.0,41620.0,0.71407097]
[1641913161058,0.00058177,41624.0,41623.0,1.67551346]
[1641913161254,0.00058177,41624.0,41623.0,1.71981346]
[1641913161455,0.00058177,41624.0,41623.0,1.81981346]
[1641913162054,0.00056279,41626.0,41623.0,1.81981346]
[1641913162253,0.00056279,41626.0,41624.0,0.31140206]
[1641913162454,0.00056279,41626.0,41625.0,0.37425]
[1641913162655,0.00056279,41626.0,41625.0,0.87425]
[1641913163098,0.00156279,41626.0,41625.0,0.88325]
[1641913163299,0.001,41626.0,41625.0,0.88325]
[1641913164498,0.06371912,41628.0,41625.0,0.77425]
[1641913164799,0.06371912,41628.0,41625.0,1.06224789]
[1641913164999,0.01566312,41628.0,41625.0,1.06224789]
[1641913165197,0.01566312,41628.0,41626.0,0.25898508]
[1641913165400,0.01566312,41628.0,41627.0,1.12425]
[1641913165799,0.0151,41628.0,41627.0,1.22425]
[1641913166196,0.0151,41628.0,41627.0,0.47425]
[1641913166404,0.0151,41628.0,41622.0,0.1]
[1641913166405,0.3419005,41628.0,41622.0,0.1]
[1641913166600,0.060067,41622.0,41616.0,0.5946]
[1641913166851,0.060067,41622.0,41612.0,0.28850822]
[1641913166852,0.060067,41622.0,41617.0,0.37425]
[1641913167048,0.060067,41622.0,41615.0,0.24100212]
[1641913167049,0.00121829,41625.0,41616.0,0.044]
[1641913167549,0.00121829,41625.0,41618.0,0.65186409]
[1641913167750,0.120134,41624.0,41619.0,0.37425]
[1641913168051,0.060066,41622.0,41619.0,0.47425]
[1641913169057,0.0031,41631.0,41621.0,1.3]
[1641913169254,0.00227584,41630.0,41629.0,0.00122226]
[1641913169451,0.00227584,41630.0,41629.0,1.71977226]
[1641913169851,0.00227584,41630.0,41629.0,2.07114403]
[1641913170052,0.00227584,41630.0,41629.0,2.3900811]
[1641913170252,0.00227584,41630.0,41629.0,0.51977226]
[1641913170503,0.0031,41631.0,41629.0,0.51977226]
[1641913170698,0.0031,41631.0,41629.0,0.0443]
[1641913171098,0.0111,41631.0,41629.0,0.0533]
[1641913171702,0.00041209,41630.0,41629.0,0.0533]
[1641913172302,0.61113191,41630.0,41629.0,0.009]
[1641913172501,0.66113191,41630.0,41629.0,0.009]
[1641913172802,0.66113191,41630.0,41617.0,0.001175]
[1641913172803,0.060072,41624.0,41617.0,0.001175]
[1641913173001,0.060072,41624.0,41617.0,0.00077802]
[1641913173002,0.68304467,41618.0,41617.0,0.00077802]
[1641913173202,0.95766963,41618.0,41617.0,0.00077802]
[1641913173400,0.45,41617.0,41603.0,0.67431771]
[1641913173604,0.26629854,41613.0,41603.0,0.67431771]
[1641913173900,0.05,41613.0,41604.0,0.34028839]
[1641913174101,0.1,41613.0,41604.0,0.34028839]
[1641913174354,0.05,41613.0,41604.0,0.34028839]
[1641913174551,0.05,41612.0,41604.0,0.34028839]
[1641913175153,0.29590953,41612.0,41605.0,0.29318221]
[1641913175350,0.060083,41610.0,41606.0,0.00047744]
[1641913175552,0.35582022,41620.0,41607.0,0.37425]
[1641913175753,0.35582022,41620.0,41606.0,0.00047744]
[1641913175754,0.009621,41622.0,41606.0,0.00171565]
[1641913176353,0.33669747,41622.0,41611.0,0.24289247]
[1641913176556,0.059125,41616.0,41611.0,0.00047738]
[1641913176958,0.059125,41616.0,41612.0,0.27091402]
[1641913177256,0.037,41616.0,41612.0,0.27091402]
[1641913177455,0.037,41616.0,41613.0,0.37425]
[1641913177657,0.037,41616.0,41614.0,0.41236662]
[1641913177858,0.037,41616.0,41612.0,0.00085833]
[1641913178297,0.30025874,41617.0,41612.0,0.00085833]
[1641913178503,0.00068308,41621.0,41612.0,0.00085833]
[1641913178699,0.06075108,41621.0,41612.0,0.00085833]
[1641913178897,0.06075108,41621.0,41616.0,0.27159817]
[1641913179300,0.06075108,41621.0,41616.0,0.52580791]
[1641913179503,0.06075108,41621.0,41616.0,0.27159817]
[1641913179701,0.06075108,41621.0,41616.0,0.37159817]
[1641913180101,0.06082963,41621.0,41616.0,0.37159817]
[1641913180513,0.0012957,41634.0,41618.0,1.30126173]
[1641913180712,0.41596352,41635.0,41633.0,0.00124984]
[1641913180905,0.41596352,41635.0,41634.0,0.104333]
[1641913181102,0.71018227,41636.0,41634.0,0.104333]
[1641913181304,0.001,41641.0,41634.0,0.0443]
[1641913181747,0.3328443,41641.0,41634.0,0.0443]
[1641913181948,0.267685,41638.0,41634.0,0.0443]
[1641913182351,0.15349205,41637.0,41634.0,0.0443]
[1641913182547,0.04501017,41636.0,41634.0,0.0443]
[1641913182749,0.09199826,41635.0,41634.0,0.0443]
[1641913182947,0.10314514,41635.0,41634.0,0.0443]
[1641913183149,0.09989658,41635.0,41634.0,0.0473]
[1641913183348,0.36758158,41635.0,41634.0,0.0473]
[1641913183748,0.267685,41635.0,41634.0,0.0473]
[1641913184149,0.317685,41635.0,41634.0,0.0473]
[1641913184351,0.267685,41635.0,41634.0,0.3443]
[1641913184551,0.15473142,41636.0,41634.0,0.3443]
[1641913184949,0.15473142,41636.0,41634.0,0.4443]
[1641913185604,0.05,41636.0,41634.0,0.4443]
[1641913185802,0.20477724,41637.0,41634.0,0.4443]
[1641913186005,0.2052934,41637.0,41634.0,0.4443]
[1641913186204,0.14479228,41637.0,41634.0,0.1443]
[1641913186405,0.09479228,41637.0,41634.0,0.0443]
[1641913186606,0.09479228,41637.0,41634.0,0.36533864]
[1641913186607,0.05051616,41637.0,41634.0,0.36533864]
[1641913186807,0.05051616,41637.0,41635.0,0.29349289]
[1641913187007,0.09685495,41636.0,41635.0,0.0443]
[1641913187410,0.14685495,41636.0,41635.0,0.0443]
[1641913187608,0.05,41636.0,41635.0,0.0443]
[1641913188107,0.14881588,41637.0,41635.0,0.0443]
[1641913188907,0.05,41637.0,41635.0,0.0443]
[1641913189109,0.110051,41637.0,41635.0,0.0503]
[1641913189356,0.61342043,41636.0,41635.0,0.006]
[1641913189557,0.62421468,41636.0,41635.0,0.006]
[1641913189957,0.62421468,41636.0,41627.0,0.00070988]
[1641913189958,1.90021468,41636.0,41627.0,0.00070988]
[1641913190158,0.33259607,41632.0,41627.0,0.00070988]
[1641913190356,0.060067,41632.0,41627.0,0.00070988]
[1641913190556,0.160067,41632.0,41627.0,0.00070988]
[1641913191056,0.16062935,41632.0,41627.0,0.00070984]
[1641913191256,0.17062935,41632.0,41627.0,0.30369709]
[1641913191455,0.11056235,41632.0,41627.0,0.02570984]
[1641913191859,0.00041302,41631.0,41627.0,0.02570984]
[1641913192057,0.00041302,41631.0,41627.0,0.02572083]
[1641913192562,0.00041302,41631.0,41627.0,0.00072083]
[1641913192860,0.00041302,41631.0,41627.0,0.00200307]
[1641913193103,0.00141302,41631.0,41628.0,0.41855]
[1641913193401,0.00195278,41631.0,41630.0,0.00123764]
[1641913193603,0.00195278,41631.0,41630.0,1.71978764]
[1641913193800,0.00195278,41631.0,41630.0,2.46113876]
[1641913193999,0.00195278,41631.0,41630.0,2.56113876]
[1641913194399,0.00095278,41631.0,41630.0,2.56113876]
[1641913194600,0.00041302,41631.0,41630.0,2.56113876]
[1641913195205,0.00041302,41631.0,41630.0,2.57713876]
[1641913196204,0.00041302,41631.0,41630.0,2.13356089]
[1641913196406,0.00041302,41631.0,41630.0,1.81978764]
[1641913196853,0.00150039,41633.0,41630.0,1.81978764]
[1641913197054,0.00096013,41633.0,41630.0,0.14553764]
[1641913197255,0.004,41631.0,41630.0,0.5553]
[1641913198259,0.004,41631.0,41630.0,0.511]
[1641913198462,0.00096013,41633.0,41630.0,1.19226752]
[1641913198661,0.00096013,41633.0,41631.0,0.41855]
[1641913199061,0.00096013,41633.0,41632.0,1.71266935]
[1641913199263,0.00041302,41633.0,41632.0,2.93100305]
[1641913199563,0.00041302,41633.0,41632.0,2.72979231]
[1641913199762,0.00041302,41633.0,41632.0,2.78982931]
[1641913200062,0.00041302,41633.0,41632.0,2.7910917]
[1641913200262,0.00041302,41633.0,41632.0,2.7310547]
[1641913200511,0.00041302,41633.0,41632.0,2.37431955]
[1641913200802,0.00041302,41633.0,41632.0,1.9616502]
[1641913201001,0.00041302,41633.0,41632.0,0.41855]
[1641913201201,0.00841302,41633.0,41632.0,0.0553]
[1641913201409,0.27609802,41633.0,41632.0,0.011]
[1641913201602,0.09351448,41630.0,41627.0,0.00071655]
[1641913201805,0.060082,41622.0,41614.0,0.57712963]
[1641913202003,0.06008,41620.0,41612.0,0.28868268]
[1641913202204,0.09493258,41618.0,41608.0,0.57712963]
[1641913202703,0.13218768,41622.0,41617.0,0.26882095]
[1641913202904,0.13218768,41622.0,41611.0,0.30252566]
[1641913203106,0.005,41618.0,41608.0,0.31252566]
[1641913203304,0.005,41618.0,41609.0,0.37425]
[1641913203504,0.005,41618.0,41603.0,0.67872341]
[1641913203505,0.0999,41616.0,41603.0,0.57712963]
[1641913203704,0.35048831,41615.0,41603.0,0.57712963]
[1641913203903,0.27978551,41613.0,41603.0,0.57712963]
[1641913204104,0.060092,41610.0,41601.0,0.33210777]
[1641913204353,0.42150957,41609.0,41600.0,0.57712963]
[1641913204557,0.10029792,41607.0,41600.0,0.57712963]
[1641913204754,0.09510146,41606.0,41598.0,0.67872341]
[1641913204957,0.25297418,41609.0,41596.0,0.57712963]
[1641913204958,0.04550112,41604.0,41596.0,0.57712963]
[1641913205153,0.04380848,41601.0,41598.0,0.30445758]
[1641913205350,0.04380848,41601.0,41596.0,0.57712963]
[1641913205552,0.09970063,41603.0,41597.0,0.39578619]
[1641913205757,0.16967005,41605.0,41596.0,0.57712963]
[1641913205758,2.13193284,41597.0,41596.0,0.57712963]
[1641913205955,2.50578948,41597.0,41596.0,0.57712963]
[1641913206153,2.45086592,41597.0,41596.0,0.17482963]
[1641913206354,0.3614965,41595.0,41591.0,0.1]
[1641913206655,0.3614965,41595.0,41593.0,0.0501]
[1641913206656,0.26890808,41594.0,41593.0,0.0501]
[1641913207056,0.267685,41594.0,41593.0,0.4501]
[1641913207355,0.008,41594.0,41593.0,0.4501]
[1641913207556,0.008,41594.0,41593.0,0.5501]
[1641913207756,0.008,41594.0,41593.0,1.48761224]
[1641913208017,0.008,41594.0,41593.0,1.8274039]
[1641913208610,0.00028825,41600.0,41593.0,1.8274039]
[1641913208810,0.00028825,41600.0,41594.0,0.49444275]
[1641913209009,0.00028825,41600.0,41594.0,0.59444275]
[1641913209211,0.00028825,41600.0,41594.0,0.87033579]
[1641913209212,0.02428825,41600.0,41594.0,0.87033579]
[1641913209413,0.02428825,41600.0,41597.0,0.04821264]
[1641913210012,0.02428825,41600.0,41597.0,0.04321264]
[1641913210813,0.08440225,41600.0,41597.0,0.04321264]
[1641913211016,0.267685,41599.0,41597.0,0.03821264]
[1641913211314,0.01128825,41600.0,41597.0,0.03821264]
[1641913211855,0.00028755,41599.0,41597.0,0.03821264]
[1641913212554,0.267685,41598.0,41597.0,0.03821264]
[1641913212756,0.00028755,41599.0,41597.0,0.03821264]
[1641913213158,0.036,41598.0,41597.0,0.03821264]
[1641913213358,0.036,41598.0,41597.0,0.73421147]
[1641913213662,0.00122225,41612.0,41598.0,1.66025]
[1641913213859,0.30270117,41619.0,41603.0,0.00121787]
[1641913214058,0.120156,41621.0,41604.0,0.0443]
[1641913214558,0.120156,41621.0,41611.0,0.29315735]
[1641913214757,0.06008,41618.0,41612.0,0.03821264]
[1641913215158,0.69066759,41617.0,41612.0,0.03821264]
[1641913215358,0.387859,41617.0,41612.0,0.03821264]
[1641913215605,0.387859,41617.0,41613.0,0.00071693]
[1641913215805,0.060087,41616.0,41613.0,0.00071693]
[1641913216004,0.267685,41615.0,41613.0,0.00071693]
[1641913216403,0.367685,41615.0,41613.0,0.00071693]
[1641913216605,1.32219531,41614.0,41613.0,0.00071693]
[1641913216805,1.58988031,41614.0,41612.0,0.03892958]
[1641913217005,1.543685,41613.0,41612.0,0.03892958]
[1641913217205,1.593685,41613.0,41612.0,0.03892958]
[1641913217904,1.81554503,41613.0,41612.0,0.03821264]
[1641913218105,1.91544503,41613.0,41612.0,0.03821264]
[1641913218305,1.91672717,41613.0,41612.0,0.03821264]
[1641913218607,1.92312278,41613.0,41612.0,0.03821264]
[1641913218811,1.92312278,41613.0,41600.0,0.00286856]
[1641913218812,1.276,41610.0,41600.0,0.00286856]
[1641913219005,1.336111,41605.0,41600.0,0.00286856]
[1641913219252,0.57264158,41604.0,41600.0,0.00286572]
[1641913219453,1.84864158,41604.0,41600.0,0.00286572]
[1641913219854,0.267685,41604.0,41600.0,0.00286572]
[1641913220053,0.12149883,41607.0,41600.0,0.00286572]
[1641913220252,0.267685,41606.0,41600.0,0.00286572]
[1641913220455,1.134,41615.0,41605.0,0.58735331]
[1641913220654,1.134,41615.0,41606.0,0.06008814]
[1641913220655,0.267685,41614.0,41606.0,0.06008814]
[1641913220953,0.00125438,41617.0,41605.0,0.58735331]
[1641913220954,0.00125438,41617.0,41605.0,0.2860208]
[1641913221152,0.18154438,41617.0,41605.0,0.2860208]
[1641913221357,0.028,41614.0,41605.0,0.2860208]
[1641913221756,0.060091,41610.0,41608.0,0.30039723]
[1641913221955,0.060091,41610.0,41607.0,0.06008737]
[1641913222156,0.028,41614.0,41605.0,0.2860208]
[1641913222157,0.028,41614.0,41605.0,0.3860208]
[1641913222356,0.028,41614.0,41606.0,0.00128441]
[1641913222556,0.028,41614.0,41613.0,0.30083997]
[1641913222757,0.028,41614.0,41613.0,0.77629545]
[1641913223012,0.00066822,41622.0,41616.0,0.12011974]
[1641913223206,0.00066822,41622.0,41619.0,0.00129806]
[1641913223407,0.00066822,41622.0,41621.0,0.00123259]
[1641913223607,0.00066822,41622.0,41621.0,1.49647898]
[1641913224010,0.00267358,41627.0,41621.0,1.99747354]
[1641913224205,0.00267358,41627.0,41626.0,0.00120874]
[1641913224407,0.0021,41636.0,41626.0,0.59987005]
[1641913224606,0.0021,41636.0,41634.0,0.42967234]
[1641913224805,0.0021,41636.0,41635.0,1.69665851]
[1641913225007,0.0021,41636.0,41635.0,1.79665851]
[1641913225207,0.0021,41636.0,41635.0,1.84695851]
[1641913225608,0.001,41636.0,41635.0,1.84695851]
[1641913226211,0.01924,41638.0,41636.0,0.00125617]
[1641913226408,0.001,41642.0,41638.0,0.37425]
[1641913226615,0.0021,41646.0,41641.0,1.3]
[1641913226866,0.0021,41646.0,41640.0,0.37425]
[1641913226867,0.001,41646.0,41644.0,1.15]
[1641913227065,0.0021,41652.0,41646.0,1.3]
[1641913227367,0.002,41651.0,41647.0,1.71855]
[1641913227563,0.002,41651.0,41647.0,1.81855]
[1641913227564,0.0045367,41651.0,41647.0,1.81855]
[1641913228164,0.0045367,41651.0,41648.0,1.67425]
[1641913228165,0.0012367,41651.0,41648.0,1.67425]
[1641913228368,0.001,41658.0,41648.0,1.67425]
[1641913228369,0.001,41658.0,41656.0,0.00128369]
[1641913228566,0.001,41658.0,41657.0,0.41855]
[1641913228769,0.009612,41663.0,41658.0,1.3]
[1641913228966,0.009612,41663.0,41661.0,0.00123701]
[1641913229169,0.009612,41663.0,41662.0,0.87077936]
[1641913229367,0.009612,41663.0,41662.0,1.18528483]
[1641913229567,0.2243,41667.0,41662.0,0.97077936]
[1641913229869,0.4415,41671.0,41664.0,0.00127855]
[1641913230071,8.704e-05,41673.0,41666.0,0.2]
[1641913230272,8.704e-05,41673.0,41670.0,0.37551561]
[1641913230515,8.704e-05,41673.0,41672.0,1.95874623]
[1641913230708,0.0011,41679.0,41678.0,0.00120015]
[1641913230907,0.0011,41679.0,41678.0,0.04550015]
[1641913231407,0.0011,41679.0,41678.0,0.42775015]
[1641913231607,0.0011,41679.0,41678.0,0.1523]
[1641913231809,0.0011,41679.0,41678.0,0.52655]
[1641913232509,0.0011,41679.0,41678.0,0.51855]
[1641913232707,0.0011,41679.0,41678.0,0.51981393]
[1641913233107,0.0011,41679.0,41678.0,0.82626755]
[1641913233308,0.08349306,41685.0,41679.0,1.3]
[1641913233512,0.00069001,41681.0,41680.0,0.0443]
[1641913233708,0.09491634,41681.0,41680.0,0.0443]
[1641913234111,0.00069001,41681.0,41680.0,0.0443]
[1641913234556,0.00069001,41681.0,41680.0,1.46685883]
[1641913234755,0.10317696,41685.0,41680.0,1.46685883]
[1641913234954,0.10317696,41685.0,41680.0,1.08587701]
[1641913235159,0.10317696,41685.0,41680.0,1.18587701]
[1641913235355,0.01,41685.0,41680.0,1.21387701]
[1641913236257,0.01,41685.0,41680.0,0.86366149]
[1641913236559,0.0968385,41686.0,41683.0,0.36934583]
[1641913236759,0.09693764,41685.0,41684.0,0.49418701]
[1641913237159,0.00067398,41685.0,41684.0,0.41855]
[1641913237358,0.01167398,41685.0,41684.0,0.52755]
[1641913237757,0.01167398,41685.0,41684.0,1.02755]
[1641913238018,0.01167398,41685.0,41684.0,1.14749091]
[1641913238409,0.011,41685.0,41684.0,1.14749091]
[1641913238609,0.001,41686.0,41684.0,1.13849091]
[1641913238809,0.001,41686.0,41685.0,1.99306963]
[1641913239010,0.001,41686.0,41685.0,2.13736963]
[1641913239410,0.051,41686.0,41685.0,2.14636963]
[1641913239615,0.00064131,41688.0,41686.0,1.58098517]
[1641913239812,0.00256484,41694.0,41687.0,1.77974097]
[1641913240012,0.01,41700.0,41690.0,0.05995291]
[1641913240212,0.01,41700.0,41698.0,0.00126609]
[1641913240411,0.01,41700.0,41698.0,1.56981609]
[1641913240611,0.01005351,41701.0,41698.0,1.66981609]
[1641913240810,0.0011,41705.0,41699.0,1.67425]
[1641913241014,0.4415,41708.0,41704.0,0.0012276]
[1641913241314,0.0383253,41711.0,41709.0,0.00123162]
[1641913241511,0.0011209,41715.0,41710.0,0.41855]
[1641913241763,0.0011209,41715.0,41714.0,1.66694484]
[1641913241962,0.0083488,41721.0,41715.0,0.37425]
[1641913242164,0.0042282,41724.0,41716.0,0.0443]
[1641913242364,0.61041902,41733.0,41716.0,0.0443]
[1641913242365,0.21096408,41729.0,41719.0,0.11983054]
[1641913242561,2.1539183,41735.0,41719.0,0.11983054]
[1641913242761,0.178654,41735.0,41719.0,0.11983054]
[1641913242962,0.20058,41740.0,41720.0,0.00121872]
[1641913243167,0.0469834,41743.0,41732.0,0.00120729]
[1641913243368,0.0469834,41743.0,41740.0,0.00127882]
[1641913243369,0.04227914,41743.0,41740.0,0.00127882]
[1641913243567,0.01,41749.0,41736.0,0.41804838]
[1641913243568,0.06031602,41754.0,41741.0,0.37396016]
[1641913243767,0.06031602,41754.0,41744.0,0.001287]
[1641913243768,0.00043002,41754.0,41744.0,0.001287]
[1641913243967,0.81163688,41756.0,41751.0,0.00122874]
[1641913244164,0.73663688,41756.0,41752.0,0.0443]
[1641913244364,0.09657106,41755.0,41753.0,0.05986347]
[1641913244564,0.09657106,41755.0,41754.0,0.0443]
[1641913244565,0.00190516,41755.0,41754.0,0.0443]
[1641913244767,0.00190516,41755.0,41754.0,0.49424]
[1641913245265,0.00190516,41755.0,41754.0,0.04624]
[1641913245522,0.00149825,41757.0,41754.0,0.00076409]
[1641913245710,0.35784559,41755.0,41754.0,0.00076409]
[1641913245910,0.6241831,41755.0,41754.0,0.00076409]
[1641913246109,0.267685,41755.0,41754.0,0.00076409]
[1641913246510,0.267685,41755.0,41752.0,0.0443]
[1641913246712,0.317685,41754.0,41752.0,0.0443]
[1641913247317,0.317685,41754.0,41752.0,0.0463]
[1641913247612,0.267685,41754.0,41752.0,0.0463]
[1641913247812,0.00035956,41755.0,41752.0,0.0463]
[1641913248012,0.267685,41754.0,41752.0,0.0463]
[1641913248213,0.0567368,41757.0,41753.0,0.3]
[1641913248513,0.0564147,41757.0,41753.0,0.3]
[1641913248814,0.0554147,41757.0,41756.0,1.63803803]
[1641913249014,0.00199268,41761.0,41757.0,1.301]
[1641913249267,0.0003917,41767.0,41760.0,0.00120924]
[1641913249462,0.0003917,41767.0,41761.0,0.40494837]
[1641913249663,0.0003917,41767.0,41762.0,0.68281924]
[1641913249867,1.7e-06,41767.0,41762.0,0.68281924]
[1641913250064,1.7e-06,41767.0,41766.0,0.00122585]
[1641913250265,1.7e-06,41767.0,41766.0,0.41886185]
[1641913250465,0.0164675,41773.0,41769.0,0.00126359]
[1641913250466,0.00195861,41770.0,41769.0,0.00126359]
[1641913250664,0.00195861,41770.0,41769.0,0.89556359]
[1641913250865,0.12165861,41770.0,41769.0,0.0443]
[1641913251064,0.0763175,41773.0,41769.0,1.3443]
[1641913251065,0.0445859,41771.0,41769.0,1.3443]
[1641913251364,0.04125589,41776.0,41770.0,1.673336]
[1641913251568,0.01019139,41776.0,41774.0,0.0012087]
[1641913251764,0.01019139,41776.0,41775.0,0.8443]
[1641913251967,0.01019139,41776.0,41744.0,0.61187917]
[1641913251968,0.35113637,41759.0,41744.0,0.61187917]
[1641913252172,1.3,41774.0,41744.0,0.42]
[1641913252173,0.30948324,41758.0,41744.0,0.42]
[1641913252370,0.00125232,41770.0,41751.0,0.1]
[1641913252566,0.281428,41769.0,41751.0,0.1]
[1641913252764,0.30948324,41768.0,41749.0,0.00122153]
[1641913253016,0.059881,41763.0,41749.0,0.00122153]
[1641913253212,0.179636,41762.0,41757.0,0.35572203]
[1641913253412,0.179636,41762.0,41749.0,0.01222153]
[1641913253612,0.179636,41762.0,41751.0,0.05986566]
[1641913253812,0.179636,41762.0,41749.0,0.13195568]
[1641913253813,0.05,41761.0,41752.0,0.373336]
[1641913254012,0.30948324,41772.0,41758.0,0.00123583]
[1641913254013,0.05,41771.0,41758.0,0.00123583]
[1641913254211,0.00160486,41767.0,41759.0,0.0012592]
[1641913254412,0.059857,41763.0,41760.0,0.373336]
[1641913254611,0.059857,41763.0,41762.0,0.37071567]
[1641913254812,0.059857,41763.0,41762.0,0.74405167]